[Event "*** Titled Tuesday Blitz"]
[Site "Chess.com"]
[Date "2018.11.06"]
[Round "8"]
[White "dmosesov"]
[Black "nubair1198"]
[Result "0-1"]
[WhiteElo "2362"]
[BlackElo "2593"]
[TimeControl "180+2"]
[EndTime "14:47:59 PST"]
[Termination "nubair1198 won by resignation"]

1. e4 {[%clk 0:03:01.9]} 1... c6 {[%clk 0:02:59.2]} 2. d4 {[%clk 0:03:02.7]}
2... d5 {[%clk 0:03:01.1]} 3. e5 {[%clk 0:03:04.2]} 3... c5 {[%clk 0:03:02.4]}
4. dxc5 {[%clk 0:03:05.2]} 4... e6 {[%clk 0:03:04]} 5. a3 {[%clk 0:02:57.5]}
5... Nc6 {[%clk 0:03:05]} 6. Nf3 {[%clk 0:02:51.5]} 6... Bxc5 {[%clk 0:03:05.9]}
7. b4 {[%clk 0:02:51.8]} 7... Bb6 {[%clk 0:03:07.5]} 8. Bb2 {[%clk 0:02:53.1]}
8... f6 {[%clk 0:03:09.1]} 9. exf6 {[%clk 0:02:50.4]} 9... Nxf6 {[%clk 0:03:11]}
10. Bd3 {[%clk 0:02:50.2]} 10... e5 {[%clk 0:03:12.4]} 11. Bb5 {[%clk
0:02:30.6]} 11... O-O {[%clk 0:02:52.6]} 12. Bxc6 {[%clk 0:02:28.7]} 12... bxc6
{[%clk 0:02:49.6]} 13. O-O {[%clk 0:02:24.1]} 13... Ng4 {[%clk 0:02:51]} 14.
Bxe5 {[%clk 0:01:48]} 14... Nxe5 {[%clk 0:02:43.4]} 15. Nxe5 {[%clk 0:01:40.6]}
15... Qf6 {[%clk 0:02:44.6]} 16. Qe2 {[%clk 0:01:25]} 16... Re8 {[%clk 0:02:40]}
17. Nd2 {[%clk 0:01:12.1]} 17... Rxe5 {[%clk 0:02:39.5]} 18. Qd3 {[%clk
0:01:08.8]} 18... Bf5 {[%clk 0:02:39.1]} 19. Qa6 {[%clk 0:01:09.6]} 19... Qg6
{[%clk 0:02:25]} 20. Rfe1 {[%clk 0:00:58.5]} 20... Bh3 {[%clk 0:02:17.4]} 21.
Qf1 {[%clk 0:00:49.7]} 21... Rg5 {[%clk 0:01:47.4]} 0-1

[Event "*** Titled Tuesday Blitz"]
[Site "Chess.com"]
[Date "2018.11.06"]
[Round "8"]
[White "WorldChampionBulletChess"]
[Black "Makalexa"]
[Result "0-1"]
[WhiteElo "2155"]
[BlackElo "2120"]
[TimeControl "180+2"]
[EndTime "14:48:03 PST"]
[Termination "Makalexa won by checkmate"]

1. d4 {[%clk 0:03:01.9]} 1... Nf6 {[%clk 0:03:00]} 2. c4 {[%clk 0:03:03]} 2...
c5 {[%clk 0:02:59.4]} 3. Nf3 {[%clk 0:03:04.9]} 3... cxd4 {[%clk 0:02:58.1]} 4.
Nxd4 {[%clk 0:03:06.8]} 4... e5 {[%clk 0:02:59.1]} 5. Nc2 {[%clk 0:03:08.3]}
5... d5 {[%clk 0:02:58.7]} 6. cxd5 {[%clk 0:03:09.2]} 6... Nxd5 {[%clk
0:02:59.3]} 7. e3 {[%clk 0:03:08.4]} 7... Nc6 {[%clk 0:02:56.1]} 8. a3 {[%clk
0:03:08.1]} 8... Be6 {[%clk 0:02:55]} 9. Be2 {[%clk 0:03:08]} 9... Bd6 {[%clk
0:02:51]} 10. O-O {[%clk 0:03:08.1]} 10... O-O {[%clk 0:02:50.9]} 11. Nd2 {[%clk
0:03:08.7]} 11... Bc7 {[%clk 0:02:48.8]} 12. Bf3 {[%clk 0:02:56.2]} 12... f5
{[%clk 0:02:45.3]} 13. e4 {[%clk 0:02:39.6]} 13... Nf4 {[%clk 0:02:45.6]} 14.
exf5 {[%clk 0:02:36.3]} 14... Bxf5 {[%clk 0:02:39]} 15. Ne3 {[%clk 0:02:37.4]}
15... Bd3 {[%clk 0:02:26.5]} 16. Re1 {[%clk 0:02:32]} 16... Nd4 {[%clk
0:02:27.1]} 17. b3 {[%clk 0:02:07.1]} 17... Qh4 {[%clk 0:02:23.6]} 18. Be4
{[%clk 0:01:30.8]} 18... Nfe2+ {[%clk 0:02:14]} 19. Kh1 {[%clk 0:01:30.6]} 19...
Rxf2 {[%clk 0:01:38.3]} 20. Nf3 {[%clk 0:01:07.1]} 20... Ng3+ {[%clk 0:01:26.4]}
21. Kg1 {[%clk 0:01:04.7]} 21... Nde2+ {[%clk 0:01:26.7]} 22. Kxf2 {[%clk
0:00:58.1]} 22... Nxe4+ {[%clk 0:01:24.9]} 23. Kf1 {[%clk 0:00:58.1]} 23... Qf2#
{[%clk 0:01:23.5]} 0-1

[Event "*** Titled Tuesday Blitz"]
[Site "Chess.com"]
[Date "2018.11.06"]
[Round "8"]
[White "andrzej"]
[Black "tactics321"]
[Result "0-1"]
[WhiteElo "2247"]
[BlackElo "2397"]
[TimeControl "180+2"]
[EndTime "14:48:20 PST"]
[Termination "tactics321 won by checkmate"]

1. d4 {[%clk 0:03:01.7]} 1... Nf6 {[%clk 0:03:00.3]} 2. c4 {[%clk 0:03:02.5]}
2... b6 {[%clk 0:03:02]} 3. Nc3 {[%clk 0:02:56.4]} 3... Bb7 {[%clk 0:03:03.2]}
4. Bg5 {[%clk 0:02:44.8]} 4... e6 {[%clk 0:03:02.8]} 5. e4 {[%clk 0:02:41]} 5...
h6 {[%clk 0:03:03.1]} 6. Bxf6 {[%clk 0:02:41.5]} 6... Qxf6 {[%clk 0:03:05]} 7.
a3 {[%clk 0:02:14.1]} 7... Nc6 {[%clk 0:03:05.8]} 8. Nf3 {[%clk 0:02:02]} 8...
g5 {[%clk 0:03:06.4]} 9. h3 {[%clk 0:01:50.3]} 9... O-O-O {[%clk 0:03:06.9]} 10.
Qd2 {[%clk 0:01:41.6]} 10... Bg7 {[%clk 0:03:07.8]} 11. e5 {[%clk 0:01:42.5]}
11... Qe7 {[%clk 0:03:08.6]} 12. Be2 {[%clk 0:01:34.4]} 12... d6 {[%clk
0:03:09.2]} 13. Qe3 {[%clk 0:01:22.4]} 13... dxe5 {[%clk 0:03:09.9]} 14. dxe5
{[%clk 0:01:23]} 14... h5 {[%clk 0:03:09.8]} 15. Rd1 {[%clk 0:01:13.6]} 15...
Rxd1+ {[%clk 0:03:10.2]} 16. Bxd1 {[%clk 0:01:15.5]} 16... g4 {[%clk 0:03:11.3]}
17. hxg4 {[%clk 0:01:14.3]} 17... hxg4 {[%clk 0:03:13.2]} 18. Rxh8+ {[%clk
0:01:14.7]} 18... Bxh8 {[%clk 0:03:15.1]} 19. Qh6 {[%clk 0:01:11.9]} 19... Qd8
{[%clk 0:03:10.3]} 20. Ng5 {[%clk 0:00:50.3]} 20... Nxe5 {[%clk 0:03:10.5]} 21.
Be2 {[%clk 0:00:37]} 21... Bxg2 {[%clk 0:03:11.4]} 22. Nb5 {[%clk 0:00:23.4]}
22... Qf6 {[%clk 0:03:08.7]} 23. Nxf7 {[%clk 0:00:17.1]} 23... Nxf7 {[%clk
0:03:06.9]} 24. Qh2 {[%clk 0:00:14.4]} 24... Ne5 {[%clk 0:02:56.8]} 25. Qxg2
{[%clk 0:00:13.6]} 25... a6 {[%clk 0:02:58]} 26. Qa8+ {[%clk 0:00:11.2]} 26...
Kd7 {[%clk 0:02:59.1]} 27. Qxa6 {[%clk 0:00:06.1]} 27... Nf3+ {[%clk 0:03:00.3]}
28. Bxf3 {[%clk 0:00:02.5]} 28... gxf3 {[%clk 0:03:02.2]} 29. Qb7 {[%clk
0:00:02.7]} 29... Qe5+ {[%clk 0:03:02.9]} 30. Kf1 {[%clk 0:00:02.2]} 30... Qe2+
{[%clk 0:03:03.3]} 31. Kg1 {[%clk 0:00:03.6]} 31... Qe1+ {[%clk 0:03:04.1]} 32.
Kh2 {[%clk 0:00:05.1]} 32... Be5+ {[%clk 0:03:05.5]} 33. Kh3 {[%clk 0:00:06.2]}
33... Qh1+ {[%clk 0:03:06.3]} 34. Kg4 {[%clk 0:00:07.7]} 34... Qg2+ {[%clk
0:03:07.2]} 35. Kh5 {[%clk 0:00:08.5]} 35... Qxf2 {[%clk 0:03:07.4]} 36. Na7
{[%clk 0:00:05.8]} 36... Qh2+ {[%clk 0:03:07.1]} 37. Kg6 {[%clk 0:00:06.5]}
37... Qg3+ {[%clk 0:03:08]} 38. Kf7 {[%clk 0:00:07.6]} 38... Qg7# {[%clk
0:03:08.7]} 0-1

[Event "*** Titled Tuesday Blitz"]
[Site "Chess.com"]
[Date "2018.11.06"]
[Round "8"]
[White "EvgenyT"]
[Black "GukeshDommaraju"]
[Result "1-0"]
[WhiteElo "2927"]
[BlackElo "2671"]
[TimeControl "180+2"]
[EndTime "14:48:34 PST"]
[Termination "EvgenyT won by checkmate"]

1. c4 {[%clk 0:02:58.9]} 1... c6 {[%clk 0:02:58.8]} 2. Nf3 {[%clk 0:02:59.5]}
2... d5 {[%clk 0:02:59.4]} 3. e3 {[%clk 0:03:00.7]} 3... Nf6 {[%clk 0:02:59.7]}
4. Nc3 {[%clk 0:03:02.2]} 4... e6 {[%clk 0:02:58]} 5. b3 {[%clk 0:03:02]} 5...
Nbd7 {[%clk 0:02:54.9]} 6. Qc2 {[%clk 0:02:59.5]} 6... b6 {[%clk 0:02:52.9]} 7.
d4 {[%clk 0:02:56.6]} 7... Bb7 {[%clk 0:02:53]} 8. Bd3 {[%clk 0:02:58.1]} 8...
Bd6 {[%clk 0:02:50.7]} 9. O-O {[%clk 0:02:59.3]} 9... O-O {[%clk 0:02:51]} 10.
Bb2 {[%clk 0:02:58.8]} 10... Qe7 {[%clk 0:02:48]} 11. Rac1 {[%clk 0:02:56.5]}
11... Rac8 {[%clk 0:02:48]} 12. Rfd1 {[%clk 0:02:56.3]} 12... Rfe8 {[%clk
0:02:46.9]} 13. Bf1 {[%clk 0:02:42]} 13... e5 {[%clk 0:02:34.9]} 14. cxd5 {[%clk
0:02:38]} 14... e4 {[%clk 0:02:10.2]} 15. dxc6 {[%clk 0:02:00.9]} 15... exf3
{[%clk 0:02:10.3]} 16. cxb7 {[%clk 0:01:59.4]} 16... Bxh2+ {[%clk 0:01:49.9]}
17. Kh1 {[%clk 0:01:58.2]} 17... Ng4 {[%clk 0:01:35.5]} 18. bxc8=Q {[%clk
0:01:51.4]} 18... Qh4 {[%clk 0:01:01.4]} 19. Qxe8+ {[%clk 0:01:25.8]} 19... Nf8
{[%clk 0:01:02.2]} 20. Qxf7+ {[%clk 0:01:26.4]} 20... Kxf7 {[%clk 0:01:02.5]}
21. Qf5+ {[%clk 0:01:28]} 21... Ke7 {[%clk 0:00:43.4]} 22. Nd5+ {[%clk
0:01:20.8]} 22... Kd6 {[%clk 0:00:32]} 23. Ba3# {[%clk 0:01:18.9]} 1-0

[Event "*** Titled Tuesday Blitz"]
[Site "Chess.com"]
[Date "2018.11.06"]
[Round "8"]
[White "biostatistician"]
[Black "Quiet_Desperation"]
[Result "1-0"]
[WhiteElo "2642"]
[BlackElo "2342"]
[TimeControl "180+2"]
[EndTime "14:48:46 PST"]
[Termination "biostatistician won by resignation"]

1. d4 {[%clk 0:03:01.7]} 1... Nf6 {[%clk 0:03:00.4]} 2. Nf3 {[%clk 0:03:03.6]}
2... e6 {[%clk 0:03:01.2]} 3. c4 {[%clk 0:03:02.7]} 3... Bb4+ {[%clk 0:03:01.6]}
4. Nbd2 {[%clk 0:03:03.8]} 4... b6 {[%clk 0:03:02.6]} 5. a3 {[%clk 0:03:05.7]}
5... Bxd2+ {[%clk 0:03:03.5]} 6. Bxd2 {[%clk 0:03:07.6]} 6... h6 {[%clk
0:03:04.4]} 7. Bf4 {[%clk 0:03:08.7]} 7... Bb7 {[%clk 0:03:05.4]} 8. e3 {[%clk
0:03:09.7]} 8... O-O {[%clk 0:03:06.3]} 9. h3 {[%clk 0:03:10.6]} 9... d6 {[%clk
0:03:07.5]} 10. Be2 {[%clk 0:03:11.7]} 10... Nbd7 {[%clk 0:03:08.8]} 11. Bh2
{[%clk 0:03:13.3]} 11... a5 {[%clk 0:03:09.5]} 12. b4 {[%clk 0:03:13.9]} 12...
Qe7 {[%clk 0:03:06.8]} 13. O-O {[%clk 0:03:15]} 13... Ne4 {[%clk 0:03:07.1]} 14.
Qc2 {[%clk 0:03:15.8]} 14... f5 {[%clk 0:03:08.3]} 15. Rfc1 {[%clk 0:03:07.8]}
15... a4 {[%clk 0:03:08.8]} 16. Rab1 {[%clk 0:02:58.8]} 16... Ng5 {[%clk
0:03:00.6]} 17. Qd1 {[%clk 0:02:53.7]} 17... Be4 {[%clk 0:02:56.8]} 18. Rb2
{[%clk 0:02:52.7]} 18... Nxf3+ {[%clk 0:02:35.6]} 19. Bxf3 {[%clk 0:02:53.4]}
19... Nf6 {[%clk 0:02:35.6]} 20. Be2 {[%clk 0:02:52]} 20... Bb7 {[%clk
0:02:25.3]} 21. c5 {[%clk 0:02:49.4]} 21... Bd5 {[%clk 0:02:19.3]} 22. cxd6
{[%clk 0:02:49.7]} 22... cxd6 {[%clk 0:02:20.3]} 23. Bb5 {[%clk 0:02:39.3]}
23... Nh7 {[%clk 0:02:14.3]} 24. Bc6 {[%clk 0:02:29.5]} 24... Bb3 {[%clk
0:02:07.4]} 25. Rxb3 {[%clk 0:02:28.5]} 25... axb3 {[%clk 0:02:07.6]} 26. Bxa8
{[%clk 0:02:29.9]} 26... Rxa8 {[%clk 0:02:08.2]} 27. Qxb3 {[%clk 0:02:31.4]}
27... Ng5 {[%clk 0:02:03.8]} 28. Rc6 {[%clk 0:02:31.7]} 28... Qb7 {[%clk
0:01:45.9]} 29. Rxd6 {[%clk 0:02:25.2]} 29... Rc8 {[%clk 0:01:45.9]} 30. Bf4
{[%clk 0:02:20.4]} 30... Nxh3+ {[%clk 0:01:12.7]} 31. Kh2 {[%clk 0:02:10.1]}
31... Nxf2 {[%clk 0:01:10.4]} 32. Qxe6+ {[%clk 0:02:06.5]} 32... Kh8 {[%clk
0:01:11.4]} 33. Rxb6 {[%clk 0:01:58.5]} 33... Ng4+ {[%clk 0:01:11.8]} 34. Kg3
{[%clk 0:01:59.6]} 34... Qa8 {[%clk 0:01:05.9]} 35. Qxf5 {[%clk 0:02:00.2]}
35... Nf6 {[%clk 0:00:57.8]} 36. Qxc8+ {[%clk 0:01:58.7]} 36... Qxc8 {[%clk
0:00:57.1]} 37. Rb8 {[%clk 0:02:00.6]} 37... Nh5+ {[%clk 0:00:56.4]} 38. Kf3
{[%clk 0:02:02.1]} 38... Qxb8 {[%clk 0:00:54.6]} 39. Bxb8 {[%clk 0:02:04]} 1-0

[Event "*** Titled Tuesday Blitz"]
[Site "Chess.com"]
[Date "2018.11.06"]
[Round "8"]
[White "Chessialist"]
[Black "Bauxi435"]
[Result "1-0"]
[WhiteElo "2551"]
[BlackElo "2442"]
[TimeControl "180+2"]
[EndTime "14:48:57 PST"]
[Termination "Chessialist won by resignation"]

1. e4 {[%clk 0:03:01.9]} 1... c5 {[%clk 0:03:00.4]} 2. Nf3 {[%clk 0:03:03]} 2...
e6 {[%clk 0:03:02]} 3. d4 {[%clk 0:03:04.3]} 3... cxd4 {[%clk 0:03:03.9]} 4.
Nxd4 {[%clk 0:03:06]} 4... Nf6 {[%clk 0:03:05.6]} 5. Bd3 {[%clk 0:03:07.1]} 5...
Nc6 {[%clk 0:03:06.8]} 6. Nb3 {[%clk 0:03:08.3]} 6... d5 {[%clk 0:03:05.5]} 7.
Nc3 {[%clk 0:03:07.2]} 7... dxe4 {[%clk 0:03:06]} 8. Nxe4 {[%clk 0:03:08.1]}
8... Nxe4 {[%clk 0:03:07.2]} 9. Bxe4 {[%clk 0:03:08.9]} 9... Qxd1+ {[%clk
0:03:09.1]} 10. Kxd1 {[%clk 0:03:10.4]} 10... Bd7 {[%clk 0:03:10.4]} 11. Be3
{[%clk 0:03:11.3]} 11... O-O-O {[%clk 0:02:59.3]} 12. Ke2 {[%clk 0:03:09.2]}
12... e5 {[%clk 0:02:58]} 13. Rhd1 {[%clk 0:03:04.5]} 13... f5 {[%clk
0:02:58.6]} 14. Rxd7 {[%clk 0:03:04.4]} 14... fxe4 {[%clk 0:02:57]} 15. Rxd8+
{[%clk 0:03:03.8]} 15... Kxd8 {[%clk 0:02:58.9]} 16. Rd1+ {[%clk 0:03:04.4]}
16... Kc7 {[%clk 0:03:00.3]} 17. a3 {[%clk 0:02:52.9]} 17... Be7 {[%clk
0:02:33.2]} 18. Nd2 {[%clk 0:02:53.7]} 18... Rd8 {[%clk 0:02:30.3]} 19. Nxe4
{[%clk 0:02:54.8]} 19... Rxd1 {[%clk 0:02:32.2]} 20. Kxd1 {[%clk 0:02:56.4]}
20... b6 {[%clk 0:02:31.2]} 21. Kd2 {[%clk 0:02:53.7]} 21... Nd8 {[%clk
0:02:30.1]} 22. c4 {[%clk 0:02:53.2]} 22... h6 {[%clk 0:02:27.9]} 23. Kc3 {[%clk
0:02:48.5]} 23... Kd7 {[%clk 0:02:26.4]} 24. b4 {[%clk 0:02:49]} 24... Ke6
{[%clk 0:02:27.6]} 25. f3 {[%clk 0:02:49.1]} 25... Nf7 {[%clk 0:02:26.1]} 26. a4
{[%clk 0:02:46.8]} 26... Nd8 {[%clk 0:02:27.2]} 27. c5 {[%clk 0:02:37.2]} 27...
bxc5 {[%clk 0:02:26.9]} 28. Nxc5+ {[%clk 0:02:38.2]} 28... Kd5 {[%clk
0:02:24.3]} 29. Ne4 {[%clk 0:02:30.3]} 29... a6 {[%clk 0:02:23.8]} 30. Kb3
{[%clk 0:02:31.4]} 30... Nc6 {[%clk 0:02:21.3]} 31. Nc3+ {[%clk 0:02:32.2]}
31... Ke6 {[%clk 0:02:20]} 32. b5 {[%clk 0:02:31.4]} 32... axb5 {[%clk
0:02:20.9]} 33. axb5 {[%clk 0:02:31.9]} 33... Na5+ {[%clk 0:02:16.2]} 34. Ka4
{[%clk 0:02:31.9]} 34... Nb7 {[%clk 0:02:17.3]} 35. b6 {[%clk 0:02:24.6]} 35...
Kd7 {[%clk 0:02:16.9]} 36. Kb5 {[%clk 0:02:25.1]} 36... Nd6+ {[%clk 0:02:18]}
37. Ka6 {[%clk 0:02:26.2]} 37... Kc6 {[%clk 0:02:18.3]} 38. g4 {[%clk
0:02:02.4]} 38... Bh4 {[%clk 0:02:04.1]} 39. Ne4 {[%clk 0:01:54.5]} 39... Nb7
{[%clk 0:02:02.5]} 40. Nc5 {[%clk 0:01:51.9]} 40... Nxc5+ {[%clk 0:01:45.4]} 41.
Bxc5 {[%clk 0:01:52.6]} 41... Bd8 {[%clk 0:01:47]} 42. b7 {[%clk 0:01:40]} 42...
Bc7 {[%clk 0:01:48]} 43. Bf8 {[%clk 0:01:41.2]} 43... e4 {[%clk 0:01:44.2]} 44.
fxe4 {[%clk 0:01:41.1]} 44... Bxh2 {[%clk 0:01:43.9]} 45. Bxg7 {[%clk
0:01:40.4]} 45... Kd7 {[%clk 0:01:42.1]} 46. e5 {[%clk 0:01:38.7]} 46... Ke6
{[%clk 0:01:42.8]} 47. b8=Q {[%clk 0:01:38.7]} 1-0

[Event "*** Titled Tuesday Blitz"]
[Site "Chess.com"]
[Date "2018.11.06"]
[Round "8"]
[White "colegiodemadrid"]
[Black "Jenia84"]
[Result "1-0"]
[WhiteElo "2241"]
[BlackElo "2250"]
[TimeControl "180+2"]
[EndTime "14:48:59 PST"]
[Termination "colegiodemadrid won by checkmate"]

1. e4 {[%clk 0:03:01.9]} 1... c5 {[%clk 0:03:00.3]} 2. Nf3 {[%clk 0:03:02.7]}
2... Nc6 {[%clk 0:03:00.5]} 3. d4 {[%clk 0:03:04]} 3... cxd4 {[%clk 0:03:01]} 4.
Nxd4 {[%clk 0:03:05.6]} 4... e5 {[%clk 0:03:02.1]} 5. Nb5 {[%clk 0:03:05.9]}
5... d6 {[%clk 0:03:03.5]} 6. c4 {[%clk 0:03:07]} 6... Be7 {[%clk 0:03:01.2]} 7.
Bd3 {[%clk 0:03:06.6]} 7... a6 {[%clk 0:02:58.1]} 8. N5c3 {[%clk 0:03:07.1]}
8... Be6 {[%clk 0:02:58.3]} 9. O-O {[%clk 0:03:07.9]} 9... Bg5 {[%clk
0:02:55.7]} 10. Nd5 {[%clk 0:03:04.9]} 10... Bxc1 {[%clk 0:02:53.9]} 11. Qxc1
{[%clk 0:03:06.3]} 11... Bxd5 {[%clk 0:02:52.4]} 12. cxd5 {[%clk 0:03:06.6]}
12... Nd4 {[%clk 0:02:53.4]} 13. Nc3 {[%clk 0:03:06.5]} 13... Ne7 {[%clk
0:02:52.6]} 14. Ne2 {[%clk 0:03:07.2]} 14... Nxe2+ {[%clk 0:02:51.7]} 15. Bxe2
{[%clk 0:03:08.7]} 15... O-O {[%clk 0:02:52.7]} 16. Qe3 {[%clk 0:03:06]} 16...
f5 {[%clk 0:02:52.2]} 17. f3 {[%clk 0:03:06.8]} 17... Qa5 {[%clk 0:02:43]} 18.
a3 {[%clk 0:03:03.8]} 18... Rac8 {[%clk 0:02:42.3]} 19. Rac1 {[%clk 0:03:02.4]}
19... h6 {[%clk 0:02:30.7]} 20. Rxc8 {[%clk 0:02:53.4]} 20... Rxc8 {[%clk
0:02:30.3]} 21. Rc1 {[%clk 0:02:54.9]} 21... Rxc1+ {[%clk 0:02:23.9]} 22. Qxc1
{[%clk 0:02:55.9]} 22... Qb6+ {[%clk 0:02:24.6]} 23. Kf1 {[%clk 0:02:54]} 23...
fxe4 {[%clk 0:02:23.1]} 24. fxe4 {[%clk 0:02:54.5]} 24... Kh7 {[%clk 0:02:18.5]}
25. Qc3 {[%clk 0:02:48.3]} 25... Ng6 {[%clk 0:02:16]} 26. Bg4 {[%clk 0:02:49]}
26... Ne7 {[%clk 0:02:02.5]} 27. g3 {[%clk 0:02:48.5]} 27... g6 {[%clk
0:02:00.3]} 28. Qf3 {[%clk 0:02:39.6]} 28... Kg7 {[%clk 0:01:59.9]} 29. Be6
{[%clk 0:02:40]} 29... Qb5+ {[%clk 0:01:57.2]} 30. Kg1 {[%clk 0:02:40.4]} 30...
Qe8 {[%clk 0:01:51.6]} 31. a4 {[%clk 0:02:27.3]} 31... h5 {[%clk 0:01:42]} 32.
Qb3 {[%clk 0:02:27.4]} 32... b5 {[%clk 0:01:38.8]} 33. axb5 {[%clk 0:02:25.6]}
33... axb5 {[%clk 0:01:34.9]} 34. Qb4 {[%clk 0:02:24.7]} 34... Qb8 {[%clk
0:01:34.5]} 35. Kg2 {[%clk 0:02:19.1]} 35... Qb6 {[%clk 0:01:32.4]} 36. Qa3
{[%clk 0:02:14]} 36... Ng8 {[%clk 0:01:27.8]} 37. Qa8 {[%clk 0:01:43.1]} 37...
Nf6 {[%clk 0:01:26.1]} 38. h4 {[%clk 0:01:31.8]} 38... Nxe4 {[%clk 0:01:21.1]}
39. Qg8+ {[%clk 0:01:31.7]} 39... Kf6 {[%clk 0:01:15.4]} 40. Qf8# {[%clk
0:01:29.7]} 1-0

[Event "*** Titled Tuesday Blitz"]
[Site "Chess.com"]
[Date "2018.11.06"]
[Round "8"]
[White "FMJoseHerrera"]
[Black "BIG_Pirate"]
[Result "1-0"]
[WhiteElo "2517"]
[BlackElo "2404"]
[TimeControl "180+2"]
[EndTime "14:49:07 PST"]
[Termination "FMJoseHerrera won by resignation"]

1. Nf3 {[%clk 0:03:01.9]} 1... d5 {[%clk 0:01:36.4]} 2. g3 {[%clk 0:03:01.4]}
2... Nf6 {[%clk 0:01:36.8]} 3. Bg2 {[%clk 0:03:01.2]} 3... Bf5 {[%clk
0:01:37.7]} 4. O-O {[%clk 0:03:02.2]} 4... e6 {[%clk 0:01:39.2]} 5. d3 {[%clk
0:03:04.1]} 5... h6 {[%clk 0:01:40.2]} 6. c3 {[%clk 0:03:05.4]} 6... c6 {[%clk
0:01:41.3]} 7. Qb3 {[%clk 0:03:06.9]} 7... Qb6 {[%clk 0:01:41.6]} 8. Be3 {[%clk
0:03:08.6]} 8... Qxb3 {[%clk 0:01:42.1]} 9. axb3 {[%clk 0:03:10.5]} 9... a6
{[%clk 0:01:43.5]} 10. b4 {[%clk 0:03:10.7]} 10... Nbd7 {[%clk 0:01:44.3]} 11.
Nbd2 {[%clk 0:03:11.4]} 11... Bd6 {[%clk 0:01:40.9]} 12. Nb3 {[%clk 0:03:12]}
12... O-O {[%clk 0:01:41.1]} 13. Na5 {[%clk 0:03:12.8]} 13... Rab8 {[%clk
0:01:42.3]} 14. Ba7 {[%clk 0:03:14]} 14... Ra8 {[%clk 0:01:25.1]} 15. Nxb7
{[%clk 0:03:15.1]} 15... Bxb4 {[%clk 0:01:26.1]} 16. Rxa6 {[%clk 0:03:15.4]}
16... Nc5 {[%clk 0:01:08]} 17. Bxc5 {[%clk 0:02:54]} 17... Rxa6 {[%clk
0:01:03.9]} 18. Bxb4 {[%clk 0:02:53.5]} 18... Rb8 {[%clk 0:01:01.3]} 19. Nc5
{[%clk 0:02:52.6]} 19... Ra2 {[%clk 0:01:02.2]} 20. Nd4 {[%clk 0:02:52.7]} 20...
Rxb2 {[%clk 0:00:55.3]} 21. Nxc6 {[%clk 0:02:52.7]} 21... Ra8 {[%clk 0:00:51.1]}
22. e4 {[%clk 0:02:49.8]} 22... dxe4 {[%clk 0:00:49.1]} 23. dxe4 {[%clk
0:02:51.7]} 23... Bg4 {[%clk 0:00:45.4]} 24. Ne7+ {[%clk 0:02:48.6]} 24... Kh7
{[%clk 0:00:45.4]} 25. e5 {[%clk 0:02:50.1]} 25... Nd5 {[%clk 0:00:45.9]} 26.
Nxd5 {[%clk 0:02:51.6]} 26... exd5 {[%clk 0:00:45]} 27. Bxd5 {[%clk 0:02:53.5]}
27... Rd8 {[%clk 0:00:44.6]} 28. Be4+ {[%clk 0:02:54.4]} 28... g6 {[%clk
0:00:44.2]} 29. Nd3 {[%clk 0:02:50.5]} 29... Re2 {[%clk 0:00:36]} 30. f3 {[%clk
0:02:41.7]} 30... Bh3 {[%clk 0:00:36.6]} 31. Ra1 {[%clk 0:02:33.7]} 31... Rxe4
{[%clk 0:00:30.9]} 32. Nf2 {[%clk 0:02:32]} 32... Rxb4 {[%clk 0:00:19]} 33. cxb4
{[%clk 0:02:30.8]} 33... Be6 {[%clk 0:00:20.1]} 34. Rb1 {[%clk 0:02:30.3]} 34...
Bf5 {[%clk 0:00:18.5]} 35. Ne4 {[%clk 0:02:30]} 35... Bxe4 {[%clk 0:00:18.9]}
36. fxe4 {[%clk 0:02:31.9]} 36... Kg7 {[%clk 0:00:17.9]} 37. b5 {[%clk
0:02:33.2]} 37... Kf8 {[%clk 0:00:19]} 38. b6 {[%clk 0:02:34.5]} 38... Ke7
{[%clk 0:00:19.8]} 39. Kf2 {[%clk 0:02:34.7]} 39... Ke6 {[%clk 0:00:19.9]} 40.
Rb5 {[%clk 0:02:36]} 40... Rb8 {[%clk 0:00:13]} 41. b7 {[%clk 0:02:37]} 41...
Kd7 {[%clk 0:00:13.3]} 42. Ke3 {[%clk 0:02:37.5]} 42... Kc7 {[%clk 0:00:14.3]}
43. Kf4 {[%clk 0:02:34.5]} 43... Rxb7 {[%clk 0:00:15.4]} 44. Rxb7+ {[%clk
0:02:36.4]} 44... Kxb7 {[%clk 0:00:17.2]} 45. e6 {[%clk 0:02:38.1]} 1-0

[Event "*** Titled Tuesday Blitz"]
[Site "Chess.com"]
[Date "2018.11.06"]
[Round "8"]
[White "Mikhail_Golubev"]
[Black "Kawhi_Leonard2"]
[Result "1-0"]
[WhiteElo "2456"]
[BlackElo "2285"]
[TimeControl "180+2"]
[EndTime "14:49:14 PST"]
[Termination "Mikhail_Golubev won by resignation"]

1. e4 {[%clk 0:03:01.9]} 1... c5 {[%clk 0:03:00.2]} 2. Nf3 {[%clk 0:03:01.9]}
2... d6 {[%clk 0:03:01.4]} 3. d4 {[%clk 0:03:02.5]} 3... cxd4 {[%clk 0:03:02.6]}
4. Nxd4 {[%clk 0:03:03.4]} 4... Nf6 {[%clk 0:03:04.2]} 5. Nc3 {[%clk 0:03:04.5]}
5... g6 {[%clk 0:03:05.5]} 6. Be3 {[%clk 0:03:04.2]} 6... Bg7 {[%clk 0:03:07]}
7. f3 {[%clk 0:03:05.3]} 7... Nc6 {[%clk 0:03:07.9]} 8. Qd2 {[%clk 0:03:05.9]}
8... O-O {[%clk 0:03:09.4]} 9. O-O-O {[%clk 0:03:06.7]} 9... d5 {[%clk
0:03:10.9]} 10. Nxc6 {[%clk 0:03:03.4]} 10... bxc6 {[%clk 0:03:12]} 11. Bh6
{[%clk 0:03:04]} 11... Bxh6 {[%clk 0:03:06.2]} 12. Qxh6 {[%clk 0:03:03]} 12...
Rb8 {[%clk 0:03:06.9]} 13. e5 {[%clk 0:02:38]} 13... Nd7 {[%clk 0:02:09]} 14. e6
{[%clk 0:02:19]} 14... fxe6 {[%clk 0:02:08.1]} 15. h4 {[%clk 0:01:57.7]} 15...
Nf6 {[%clk 0:02:03.1]} 16. h5 {[%clk 0:01:46.6]} 16... gxh5 {[%clk 0:01:46.8]}
17. g4 {[%clk 0:01:19]} 17... hxg4 {[%clk 0:01:41.3]} 18. fxg4 {[%clk 0:01:11]}
18... Qd6 {[%clk 0:01:17.9]} 19. Ne4 {[%clk 0:00:52.9]} 19... Qe5 {[%clk
0:00:22]} 20. Nxf6+ {[%clk 0:00:50.8]} 20... Rxf6 {[%clk 0:00:22.5]} 21. Qxh7+
{[%clk 0:00:50]} 21... Kf8 {[%clk 0:00:23.5]} 22. Qh8+ {[%clk 0:00:49.8]} 22...
Kf7 {[%clk 0:00:23.7]} 23. Rh7+ {[%clk 0:00:49.7]} 1-0